bitfinex-derivatives/quotes_SOLF0:USTF0_20250817
["timestamp","ask_amount","ask_price","bid_price","bid_amount"]
[1755421839702,1.4,192.84,192.72,3.01]
[1755421839998,1.4,192.82,192.72,3.01]
[1755421842300,1.4,192.84,192.75,3.01]
[1755421842497,4.6892503,192.83,192.75,3.01]
[1755421842695,1.4,192.82,192.75,3.01]
[1755421845294,4.69262154,192.81,192.75,3.01]
[1755421845500,1.4,192.81,192.75,3.01]
[1755421845695,4.68750406,192.8,192.75,3.01]
[1755421845901,1.4,192.79,192.75,3.01]
[1755421846205,1.4,192.81,192.69,3.01]
[1755421846405,1.4,192.79,192.69,3.01]
[1755421848098,2.06454656,192.84,192.72,2.84]
[1755421848294,1.4,192.82,192.72,2.84]
[1755421848492,9.98452972,192.81,192.72,2.84]
[1755421848701,4.69170837,192.8,192.72,2.84]
[1755421848900,1.4,192.81,192.72,2.84]
[1755421849102,4.69175739,192.8,192.72,2.84]
[1755421849301,2.06454656,192.81,192.72,2.84]
[1755421849508,1.4,192.79,192.72,2.84]
[1755421849800,6.09338757,192.78,192.72,2.84]
[1755421850006,1.4,192.78,192.72,2.84]
[1755421850906,1.4,192.8,192.72,2.84]
[1755421851105,8.59415105,192.79,192.72,2.84]
[1755421851305,1.4,192.8,192.72,2.84]
[1755421851512,8.59588743,192.79,192.72,2.84]
[1755421851806,4.69680197,192.78,192.72,2.84]
[1755421852109,1.4,192.8,192.72,2.84]
[1755421852295,8.59755632,192.79,192.72,2.84]
[1755421852495,1.4,192.8,192.72,2.84]
[1755421852707,1.4,192.78,192.72,2.84]
[1755421854506,1.4,192.8,192.72,2.84]
[1755421854712,8.61068616,192.79,192.72,2.84]
[1755421854906,1.4,192.82,192.72,2.84]
[1755421855113,10.01049288,192.81,192.72,2.84]
[1755421855405,10.01049288,192.8,192.72,2.84]
[1755421855603,8.61049288,192.79,192.72,2.84]
[1755421855908,1.4,192.85,192.75,2.84]
[1755421856103,1.4,192.83,192.75,2.84]
[1755421856303,1.4,192.81,192.75,2.84]
[1755421857404,3.91411457,192.8,192.75,2.84]
[1755421857606,1.4,192.79,192.75,2.84]
[1755421857908,1.4,192.79,192.72,2.84]
[1755421859513,1.4,192.84,192.72,2.84]
[1755421859817,10.03876521,192.83,192.72,2.84]
[1755421860010,1.4,192.81,192.72,2.84]
[1755421860211,8.63876521,192.8,192.72,2.84]
[1755421860407,8.63876521,192.79,192.72,2.84]
[1755421860716,1.4,192.82,192.72,2.84]
[1755421861012,10.04196913,192.81,192.72,2.84]
[1755421861214,8.64196913,192.8,192.72,2.84]
[1755421861410,8.64196913,192.79,192.72,2.84]
[1755421861615,1.4,192.85,192.75,2.84]
[1755421861812,8.64558161,192.84,192.75,2.84]
[1755421862006,8.64558161,192.83,192.75,2.84]
[1755421862316,8.64576363,192.82,192.75,2.84]
[1755421862513,8.64576363,192.81,192.75,2.84]
[1755421862714,4.72377427,192.8,192.75,2.84]
[1755421862911,5.84231536,192.88,192.75,2.84]
[1755421863109,1.4,192.85,192.75,2.84]
[1755421863310,8.64830179,192.84,192.75,2.84]
[1755421863510,8.64830179,192.83,192.75,2.84]
[1755421863706,8.64830179,192.82,192.75,2.84]
[1755421864008,1.4,192.88,192.8,4.90454656]
[1755421864213,3.92370905,192.87,192.81,2.84]
[1755421864411,5.32370905,192.86,192.81,2.84]
[1755421864613,1.4,192.84,192.82,2.84]
[1755421864817,3.90735252,192.83,192.77,2.84]
[1755421865019,5.30735252,192.82,192.77,2.84]
[1755421865221,1.4,192.82,192.77,2.84]
[1755421865422,2.06454656,192.87,192.77,2.84]
[1755421865720,1.4,192.81,192.77,2.84]
[1755421866309,2.06454656,192.84,192.75,2.84]
[1755421866516,1.4,192.82,192.75,2.84]
[1755421866715,1.4,192.79,192.75,2.84]
[1755421867021,5.84231536,192.87,192.76,2.84]
[1755421867224,1.4,192.83,192.76,2.84]
[1755421867515,5.30786631,192.82,192.76,2.84]
[1755421867716,5.30786631,192.81,192.76,2.84]
[1755421867919,1.4,192.81,192.76,2.84]
[1755421868725,1.4,192.85,192.76,2.84]
[1755421869019,1.4,192.83,192.76,2.84]
[1755421869225,3.90685287,192.82,192.76,2.84]
[1755421869414,1.4,192.8,192.76,2.84]
[1755421869615,1.4,192.85,192.76,2.84]
[1755421869815,1.4,192.83,192.76,2.84]
[1755421870011,3.90678736,192.82,192.76,2.84]
[1755421870216,1.4,192.83,192.76,2.84]
[1755421870524,3.90691055,192.82,192.76,2.84]
[1755421870821,1.4,192.83,192.76,2.84]
[1755421871021,3.90662489,192.82,192.76,2.84]
[1755421871222,3.9067283,192.81,192.72,2.06454656]
[1755421871521,1.4,192.8,192.73,2.84]
[1755421871724,1.4,192.81,192.73,2.84]
[1755421872022,1.4,192.84,192.73,2.84]
[1755421872218,1.4,192.82,192.73,2.84]
[1755421872418,3.90668669,192.81,192.73,2.84]
[1755421872617,2.06454656,192.79,192.63,2.84]
[1755421872822,1.4,192.77,192.66,2.84]
[1755421873019,3.90694926,192.76,192.66,2.84]
[1755421873222,1.4,192.77,192.66,2.84]
[1755421875123,3.90750411,192.76,192.66,2.84]
[1755421875423,1.4,192.77,192.66,2.84]
[1755421875626,3.90739038,192.76,192.66,2.84]
[1755421875828,1.4,192.77,192.66,2.84]
[1755421876021,1.4,192.75,192.66,2.84]
[1755421882725,1.4,192.79,192.68,2.06454656]
[1755421883027,8.60438623,192.78,192.69,2.96]
[1755421883216,3.91128313,192.77,192.69,2.96]
[1755421883424,1.4,192.79,192.69,2.96]
[1755421883622,10.00621908,192.78,192.69,2.96]
[1755421883822,3.91211967,192.77,192.71,2.06454656]
[1755421884024,1.4,192.8,192.72,2.96]
[1755421884222,3.9115555,192.79,192.72,2.96]
[1755421884419,1.4,192.8,192.72,2.96]
[1755421885326,1.4,192.86,192.75,2.96]
[1755421885624,354.24231536,192.88,192.77,2.06454656]
[1755421885625,1.4,192.84,192.77,2.06454656]
[1755421885815,3.9114456,192.83,192.78,2.96]
[1755421886021,1.4,192.86,192.78,2.96]
[1755421886226,8.60346522,192.85,192.78,2.96]
[1755421886416,3.91082314,192.84,192.78,2.96]
[1755421886617,1.4,192.85,192.78,2.96]
[1755421886820,5.30976128,192.84,192.78,2.96]
[1755421887021,1.4,192.84,192.78,2.96]
[1755421888228,1.4,192.87,192.78,2.96]
[1755421888430,1.4,192.85,192.78,2.96]
[1755421888634,5.30920566,192.84,192.78,2.96]
[1755421888820,1.4,192.84,192.78,2.96]
[1755421889428,348.4,192.88,192.8,2.96]
[1755421889429,1.4,192.86,192.8,2.96]
[1755421889628,1.4,192.84,192.8,2.96]
[1755421890136,1.4,192.87,192.8,2.96]
[1755421890338,1.4,192.85,192.8,2.96]
[1755421890543,1.4,192.84,192.8,2.96]
[1755421890929,1.4,192.83,192.8,2.96]
[1755421891435,1.4,192.83,192.81,2.96]
[1755421891630,2.06454656,192.84,192.75,2.96]
[1755421891838,1.4,192.82,192.75,2.96]
[1755421892027,1.4,192.8,192.75,2.96]
[1755421892227,3.90835329,192.79,192.75,2.96]
[1755421892428,1.4,192.78,192.76,2.96]
[1755421892632,2.06454656,192.82,192.7,2.06454656]
[1755421892832,8.59840502,192.81,192.74,2.96]
[1755421893031,2.06454656,192.82,192.74,2.96]
[1755421893032,1.4,192.76,192.74,2.96]
[1755421893233,1.4,192.76,192.75,2.96]
[1755421893745,1.4,192.76,192.73,2.96]
[1755421894045,1.4,192.75,192.7,2.06454656]
[1755421894237,1.4,192.81,192.71,2.96]
[1755421894439,1.4,192.79,192.71,2.96]
[1755421894637,3.90872129,192.78,192.71,2.96]
[1755421894838,3.90872129,192.77,192.71,2.96]
[1755421895034,1.4,192.78,192.71,2.96]
[1755421897444,1.4,192.81,192.71,2.96]
[1755421897645,1.4,192.79,192.71,2.96]
[1755421897940,1.4,192.77,192.71,2.96]
[1755421899957,1.4,192.8,192.71,2.96]
[1755421900158,5.2601673,192.79,192.71,2.96]
[1755421900352,1.4,192.82,192.74,2.96]
[1755421900749,2.06454656,192.9,192.77,2.96]
[1755421900950,1.4,192.86,192.77,2.96]
[1755421901152,3.85895338,192.85,192.77,2.96]
[1755421901349,1.4,192.86,192.77,2.96]
[1755421901549,3.85838637,192.85,192.77,2.96]
[1755421901857,1.4,192.86,192.77,2.96]
[1755421902151,3.85833125,192.85,192.8,2.96]
[1755421902357,1.4,192.91,192.83,2.96]
[1755421902559,8.54447131,192.9,192.83,2.96]
[1755421902753,3.85725188,192.89,192.83,2.96]
[1755421903058,1.4,192.92,192.86,2.96]
[1755421903261,3.85646485,192.91,192.86,2.96]
[1755421903459,1.4,192.92,192.86,2.96]
[1755421904961,248.01929464,192.97,192.86,2.96]
[1755421905155,1.4,192.94,192.86,2.96]
[1755421905352,3.85247648,192.93,192.86,2.96]
[1755421905554,248.01929464,192.97,192.86,2.06454656]
[1755421905755,9.93039716,192.96,192.87,2.96]
[1755421905954,9.92786693,192.95,192.87,2.96]
[1755421906262,1.4,192.95,192.87,2.96]
[1755421908459,8.51555844,192.94,192.87,2.96]
[1755421908759,1.39,192.91,192.81,3.04]
[1755421909367,2.06454656,192.95,192.83,2.06454656]
[1755421909565,1.39,192.93,192.84,3.04]
[1755421910067,1.39,192.96,192.87,3.04]
[1755421910262,1.39,192.94,192.87,3.04]
[1755421912160,1.39,192.92,192.87,3.04]
[1755421912361,1.39,192.91,192.81,3.04]
[1755421913255,1.39,192.91,192.81,5.10454656]
[1755421913458,1.39,192.91,192.82,3.04]
[1755421914566,1.39,192.94,192.85,3.04]
[1755421914760,3.84123254,192.93,192.85,3.04]
[1755421915066,1.39,192.94,192.85,3.04]
[1755421917065,135.9,192.97,192.88,3.04]
[1755421917265,5.22962353,192.96,192.88,3.04]
[1755421917467,1.39,192.96,192.88,3.04]
[1755421919069,1.39,193.0,192.94,3.04]
[1755421923275,1.39,193.0,192.88,2.06454656]
[1755421923480,1.39,192.98,192.92,3.04]
[1755421923671,1.39,192.98,192.86,2.06454656]
[1755421923874,113.37650739,193.04,192.84,3.04]
[1755421923875,1.39,192.94,192.84,3.04]
[1755421927581,1.39,192.96,192.86,2.06454656]
[1755421927780,1.39,192.96,192.87,3.04]
[1755421927975,2.06454656,193.0,192.87,3.04]
[1755421928178,1.39,192.98,192.87,3.04]
[1755421928483,8.49784764,192.97,192.87,3.04]
[1755421928683,1.39,193.0,192.9,3.04]
[1755421928977,8.4994629,192.99,192.9,3.04]
[1755421929184,1.39,193.0,192.9,3.04]
[1755421929383,9.88896591,192.99,192.9,3.04]
[1755421929578,1.39,192.99,192.9,3.04]
[1755421929882,1.39,192.97,192.9,3.04]
[1755421930478,1.39,192.99,192.9,3.04]
[1755421931078,8.49848702,192.98,192.9,3.04]
[1755421931384,1.39,192.96,192.9,3.04]
[1755421936888,10.56135889,192.95,192.88,3.04]
[1755421937188,1.39,192.94,192.88,3.04]
[1755421938785,1.39,192.94,192.83,2.06454656]
[1755421938985,1.39,192.94,192.85,2.89]
[1755421939381,1.39,192.92,192.85,2.89]
[1755421940685,3.45454656,192.92,192.85,2.89]
[1755421940882,1.39,192.91,192.85,2.89]
[1755421941291,2.06454656,192.92,192.79,2.06454656]
[1755421941292,1.39,192.89,192.83,2.89]
[1755421941488,5.23726217,192.88,192.83,2.89]
[1755421941694,1.39,192.88,192.83,2.89]
[1755421942094,1.39,192.88,192.81,2.89]
[1755421942392,2.06454656,192.86,192.74,135.32]
[1755421942593,1.39,192.85,192.79,2.89]
[1755421942981,1.39,192.87,192.79,2.89]
[1755421943187,3.84924732,192.86,192.79,2.89]
[1755421943385,3.85198038,192.85,192.79,2.89]
[1755421943597,6.06661057,192.86,192.79,2.89]
[1755421943598,1.39,192.86,192.79,2.89]
[1755421943794,3.85117805,192.85,192.79,2.89]
[1755421943994,1.39,192.86,192.79,2.89]
[1755421944289,1.39,192.83,192.8,2.89]
[1755421944483,1.39,192.86,192.81,2.89]
[1755421944682,8.53142494,192.85,192.81,2.89]
[1755421944895,3.45454656,192.87,192.81,2.89]
[1755421945087,1.39,192.85,192.81,2.89]
[1755421945290,3.85523493,192.84,192.75,2.06454656]
[1755421945586,1.39,192.85,192.83,2.89]
[1755421946389,1.39,192.86,192.75,2.89]
[1755421946591,1.39,192.83,192.75,2.89]
[1755421948192,1.39,192.86,192.75,4.95454656]
[1755421948502,8.53328251,192.85,192.76,2.89]
[1755421948696,1.39,192.86,192.76,2.89]
[1755421948898,5.2423316,192.85,192.76,2.89]
[1755421949196,1.39,192.85,192.76,2.89]
[1755421949789,8.52919646,192.84,192.76,2.89]
[1755421949997,5.24168229,192.83,192.76,2.89]
[1755421950190,1.39,192.82,192.76,2.89]
[1755421950690,2.06454656,192.84,192.71,2.06454656]
[1755421950691,1.39,192.8,192.77,2.89]
[1755421950895,2.06454656,192.81,192.75,2.89]
[1755421951094,1.39,192.8,192.76,2.89]
[1755421951794,1.39,192.8,192.74,2.89]
[1755421954103,1.39,192.8,192.69,2.89]
[1755421954303,1.39,192.77,192.69,2.89]
[1755421955800,1.39,192.75,192.69,2.89]
[1755421959505,2.06454656,192.76,192.69,2.89]
[1755421959709,1.39,192.75,192.69,2.89]
[1755421960908,1.39,192.72,192.59,4.95454656]
[1755421961108,1.39,192.72,192.6,2.89]
[1755421966516,1.39,192.69,192.6,2.89]
[1755421968011,2.06454656,192.7,192.6,2.89]
[1755421968218,3.46454656,192.7,192.6,2.89]
[1755421968416,2.06454656,192.7,192.6,2.89]
[1755421969420,3.46454656,192.7,192.6,2.89]
[1755421969719,1.4,192.68,192.6,2.89]
[1755421970021,1.4,192.66,192.6,2.89]
[1755421970219,1.4,192.69,192.6,2.89]
[1755421970521,6.05572316,192.68,192.6,2.89]
[1755421970719,6.05572316,192.67,192.6,2.89]
[1755421970921,1.4,192.67,192.6,2.89]
[1755421971727,1.4,192.66,192.6,2.89]
[1755421971924,2.06454656,192.67,192.6,2.89]
[1755421972224,1.4,192.69,192.6,2.89]
[1755421972429,4.65126935,192.68,192.6,2.89]
[1755421972618,1.4,192.68,192.6,2.89]
[1755421973421,4.65104379,192.67,192.6,2.89]
[1755421973722,1.4,192.67,192.6,2.89]
[1755421976028,1.4,192.7,192.6,4.95454656]
[1755421976220,4.65233071,192.69,192.61,3.03]
[1755421976421,1.4,192.7,192.61,3.03]
[1755421976616,1.4,192.68,192.61,3.03]
[1755421976824,6.71788227,192.67,192.61,3.03]
[1755421977023,4.65333571,192.66,192.61,3.03]
[1755421977225,6.05376231,192.65,192.61,3.03]
[1755421977424,2.06454656,192.67,192.61,3.03]
[1755421977625,4.65488979,192.66,192.61,3.03]
[1755421977820,4.65488979,192.65,192.61,3.03]
[1755421978028,2.06454656,192.67,192.61,3.03]
[1755421978231,1.4,192.65,192.61,3.03]
[1755421978423,4.65718198,192.64,192.61,3.03]
[1755421978618,1.4,192.64,192.62,3.03]
[1755421978825,1.4,192.64,192.56,3.03]
[1755421979224,1.4,192.66,192.56,3.03]
[1755421979421,4.65574471,192.65,192.56,3.03]
[1755421979626,4.65574471,192.64,192.56,3.03]
[1755421979825,1.4,192.66,192.56,3.03]
[1755421980133,4.65801493,192.65,192.56,3.03]
[1755421980430,4.66040366,192.64,192.56,3.03]
[1755421980631,1.4,192.66,192.57,3.03]
[1755421980823,4.66040366,192.65,192.57,3.03]
[1755421981024,4.66040366,192.64,192.57,3.03]
[1755421981225,1.4,192.66,192.57,3.03]
[1755421981524,4.66347644,192.65,192.57,3.03]
[1755421981732,4.6633323,192.64,192.57,3.03]
[1755421982029,1.4,192.66,192.57,3.03]
[1755421982219,4.66320535,192.65,192.57,3.03]
[1755421982422,4.66320535,192.64,192.57,3.03]
[1755421982627,1.4,192.66,192.57,3.03]
[1755421982828,6.06550293,192.65,192.57,3.03]
[1755421983028,4.66550293,192.64,192.57,3.03]
[1755421983230,1.4,192.65,192.57,3.03]
[1755421983533,4.66823303,192.64,192.57,3.03]
[1755421983732,4.66823303,192.63,192.57,3.03]
[1755421983934,1.4,192.67,192.57,3.03]
[1755421984127,8.50578491,192.66,192.57,3.03]
[1755421984328,8.50803647,192.65,192.57,3.03]
[1755421984631,1.4,192.7,192.6,3.03]
[1755421984823,1.4,192.68,192.6,3.03]
[1755421985022,8.51018683,192.67,192.6,3.03]
[1755421985227,1.4,192.68,192.6,3.03]
[1755421985228,4.67066081,192.66,192.6,3.03]
[1755421985429,4.67066081,192.65,192.6,3.03]
[1755421985631,4.67066081,192.64,192.6,3.03]
[1755421985832,1.4,192.68,192.6,3.03]
[1755421986033,8.51578969,192.67,192.6,3.03]
[1755421986232,4.67363411,192.66,192.6,3.03]
[1755421986433,4.67363411,192.65,192.6,3.03]
[1755421986633,1.4,192.7,192.6,3.03]
[1755421986837,8.51961378,192.69,192.6,3.03]
[1755421987037,8.51961378,192.68,192.6,3.03]
[1755421987233,8.51961378,192.67,192.6,3.03]
[1755421987440,4.67582754,192.66,192.6,3.03]
[1755421987734,4.6779323,192.65,192.6,3.03]
[1755421988037,4.6779323,192.64,192.6,3.03]
[1755421988234,1.4,192.68,192.6,3.03]
[1755421988433,8.52390132,192.67,192.6,3.03]
[1755421988637,8.52390132,192.66,192.6,3.03]
[1755421988836,4.67831734,192.65,192.6,3.03]
[1755421989034,4.67831734,192.64,192.6,3.03]
[1755421989331,1.4,192.68,192.6,3.03]
[1755421989639,8.53611538,192.67,192.6,3.03]
[1755421989832,4.6815312,192.66,192.6,3.03]
[1755421990034,4.6815312,192.66,192.59,2.06454656]
[1755421990035,5.84231536,192.75,192.65,2.06454656]
[1755421990242,2.91,192.72,192.66,3.03]
[1755421990539,3.85434861,192.71,192.66,3.03]
[1755421990738,3.85434861,192.7,192.66,3.03]
[1755421990936,2.91,192.72,192.66,3.03]
[1755421991131,3.85573012,192.71,192.66,3.03]
[1755421991338,3.85780267,192.7,192.66,3.03]
[1755421991534,2.91,192.76,192.68,2.06454656]
[1755421991740,143.70347304,192.82,192.69,3.03]
[1755421991741,3.85766122,192.75,192.69,3.03]
[1755421992040,6.76766122,192.74,192.69,3.03]
[1755421992341,2.91,192.74,192.69,3.03]
[1755421992644,3.85874,192.73,192.69,3.03]
[1755421992835,2.91,192.75,192.69,3.03]
[1755421993032,2.91,192.78,192.72,3.03]
[1755421993246,3.85836104,192.77,192.72,3.03]
[1755421993539,2.91,192.78,192.72,3.03]
[1755421993843,6.76969037,192.77,192.72,3.03]
[1755421994043,2.91,192.77,192.72,3.03]
[1755421995237,2.91,192.81,192.75,3.03]
[1755421995442,2.91,192.83,192.78,3.03]
[1755421995640,2.91,192.81,192.75,3.03]
[1755421995847,2.91,192.79,192.75,3.03]
[1755421996040,2.91,192.79,192.72,3.03]
[1755421997341,2.91,192.79,192.75,2.94]
[1755421997642,3.03,192.81,192.75,2.94]
[1755422011148,3.03,192.81,192.75,5.00454656]
[1755422011352,3.03,192.81,192.76,2.94]
[1755422011742,3.03,192.8,192.76,2.94]
[1755422015054,2.06454656,192.86,192.65,134.6]
[1755422015251,3.03,192.79,192.72,2.94]
[1755422016757,3.03,192.79,192.74,2.06454656]
[1755422017057,3.03,192.79,192.75,2.94]
[1755422019156,3.03,192.85,192.75,2.94]
[1755422022164,3.03,192.85,192.76,2.94]
[1755422025657,3.03,192.83,192.76,2.94]
[1755422029460,2.93,192.81,192.76,2.94]
[1755422029862,2.93,192.84,192.76,2.94]
[1755422030053,2.93,192.82,192.76,2.94]
[1755422032464,2.93,192.8,192.76,2.94]
[1755422033458,2.93,192.8,192.77,2.88]
[1755422033962,2.93,192.85,192.74,2.88]
[1755422034151,3.87040585,192.84,192.74,2.88]
[1755422034351,2.93,192.82,192.76,2.06454656]
[1755422034655,3.87040585,192.81,192.77,2.88]
[1755422034851,3.87040585,192.8,192.77,2.88]
[1755422035058,2.93,192.86,192.77,2.88]
[1755422035260,2.93,192.84,192.77,2.88]
[1755422035462,2.93,192.82,192.77,2.88]
[1755422035659,2.93,192.8,192.77,2.88]
[1755422036264,3.88074262,192.79,192.77,2.88]
[1755422036462,2.93,192.8,192.77,2.88]
[1755422036658,3.8808173,192.79,192.76,2.88]
[1755422036865,2.93,192.85,192.76,2.88]
[1755422037067,2.93,192.83,192.76,2.88]
[1755422037264,2.93,192.81,192.76,2.88]
[1755422037461,2.93,192.79,192.76,2.88]
[1755422038066,2.93,192.85,192.74,2.88]
[1755422038265,8.44701445,192.84,192.74,2.88]
[1755422038461,2.93,192.82,192.74,2.88]
[1755422038662,2.93,192.8,192.74,2.88]
[1755422038964,2.93,192.78,192.74,2.88]
[1755422040562,2.93,192.8,192.74,2.88]
[1755422040762,2.93,192.78,192.75,2.88]
[1755422040956,2.93,192.78,192.76,2.88]
[1755422041155,2.93,192.77,192.76,2.88]
[1755422044062,5.84231536,192.85,192.76,2.88]
[1755422044362,2.93,192.78,192.76,2.88]
[1755422044667,2.93,192.78,192.77,2.88]
[1755422045162,6.81562032,192.78,192.77,2.88]
[1755422045357,6.81569298,192.78,192.77,2.88]
[1755422046064,3.88569298,192.78,192.73,2.06454656]
[1755422046267,2.93,192.85,192.74,2.88]
[1755422046463,2.93,192.83,192.74,2.88]
[1755422046663,2.93,192.81,192.74,2.88]
[1755422046863,37.87471941,193.18,192.78,2.88]
[1755422046864,3.88587225,192.8,192.78,2.88]
[1755422047066,2.93,192.83,192.78,2.88]
[1755422047257,2.93,192.81,192.77,2.06454656]
[1755422047569,2.93,192.79,192.76,2.88]
[1755422047767,2.93,192.77,192.76,2.88]
[1755422048761,5.84231536,192.85,192.76,2.88]
[1755422048961,2.93,192.79,192.76,2.88]
[1755422050069,2.93,192.85,192.76,2.88]
[1755422050274,2.93,192.83,192.76,2.88]
[1755422050459,8.46954699,192.82,192.76,2.88]
[1755422050659,2.93,192.8,192.76,2.88]
[1755422050869,3.90288497,192.79,192.76,2.88]
[1755422051068,2.93,192.85,192.76,2.88]
[1755422051373,2.93,192.83,192.76,2.88]
[1755422051568,6.83258607,192.82,192.76,2.88]
[1755422051764,3.90258607,192.81,192.78,2.88]
[1755422052073,2.93,192.84,192.78,2.88]
[1755422052275,6.83238013,192.83,192.78,2.88]
[1755422052471,3.90238013,192.82,192.78,2.88]
[1755422052684,2.93,192.86,192.81,2.88]
[1755422052863,2.93,192.84,192.81,2.88]
[1755422053172,2.93,192.83,192.81,2.88]
[1755422053361,5.84231536,192.92,192.81,2.88]
[1755422053562,2.93,192.84,192.81,2.88]
[1755422055173,5.84231536,192.92,192.81,2.88]
[1755422055373,8.45533712,192.91,192.81,2.88]
[1755422055571,2.93,192.85,192.81,2.88]
[1755422060981,2.78,192.93,192.81,2.88]
[1755422061175,2.78,192.91,192.81,2.88]
[1755422061376,2.78,192.89,192.81,2.88]
[1755422061681,2.78,192.87,192.81,2.88]
[1755422063481,2.78,192.87,192.84,2.83]
[1755422063873,2.78,192.93,192.83,2.06454656]
[1755422064076,8.45726059,192.92,192.82,2.83]
[1755422064275,2.78,192.9,192.82,2.83]
[1755422064981,2.78,192.88,192.82,2.83]
[1755422070184,3.88590083,192.87,192.8,4.89454656]
[1755422070383,2.78,192.9,192.81,2.83]
[1755422070680,2.78,192.88,192.81,2.83]
[1755422074578,2.06454656,192.91,192.81,2.83]
[1755422074579,2.78,192.86,192.81,2.83]
[1755422076890,2.78,192.85,192.8,2.06454656]
[1755422077089,2.78,192.85,192.82,2.83]
[1755422077289,2.78,192.85,192.81,2.83]
[1755422077488,2.78,192.84,192.81,2.83]
[1755422078389,2.78,192.84,192.8,2.83]
[1755422079090,2.06454656,192.93,192.8,2.83]
[1755422079286,2.78,192.83,192.8,2.83]
[1755422082695,2.78,192.83,192.82,1.32411521]
[1755422082892,2.78,192.83,192.82,4.15411521]
[1755422083294,2.78,192.83,192.73,348.32]
[1755422083495,2.78,192.83,192.77,4.15411521]
[1755422084186,1.32411521,192.81,192.75,1.32411521]
[1755422084585,2.78,192.84,192.78,2.83]
[1755422084790,3.89304404,192.83,192.78,2.83]
[1755422085087,2.78,192.82,192.78,2.83]
[1755422086390,2.78,192.82,192.76,2.83]
[1755422097412,3.89565915,192.81,192.76,2.83]
[1755422097615,2.92,192.84,192.76,2.83]
[1755422097913,2.92,192.82,192.76,2.83]
[1755422098113,2.92,192.8,192.74,2.86]
[1755422100216,2.92,192.8,192.74,4.92969337]
[1755422100608,2.92,192.8,192.75,2.86]
[1755422100916,2.92,192.79,192.75,2.86]
[1755422101715,2.06969337,192.85,192.75,2.86]
[1755422101917,2.92,192.78,192.75,2.86]
[1755422103617,2.06969337,192.85,192.75,2.86]
[1755422103819,8.47169058,192.84,192.75,2.86]
[1755422104012,2.92,192.82,192.75,2.86]
[1755422104212,2.92,192.8,192.75,2.86]
[1755422104825,2.92,192.8,192.71,2.86]
[1755422105016,2.92,192.78,192.71,2.86]
[1755422105218,4.98969337,192.76,192.69,2.86]
[1755422105512,2.92,192.74,192.66,2.86]
[1755422105715,2.92,192.72,192.66,2.86]